Cogmind - Beta 13 @@@ ROGUE MODE // 2024.04.01 @ 20:18:56 Player: Alvin Result: Destroyed by Y-45 Defender with Beam Rifle Performance ------------- Evolutions (2) 1000 Regions Visited (4) 800 Robots Destroyed (7) 35 Value Destroyed (273) 273 Prototype IDs (2) 40 Alien Tech Used (0) 0 Bonus (0) 0 TOTAL SCORE: 2148 Bonus ------- None Cogmind --------- Core Integrity 0/550 Matter 275/300 Energy 99/100 System Corruption 0% Temperature Cool (85) Movement Rolling (95) Ox1 Location -8/Materials Parts ------- > --- POWER (2) -------- (None) > --- PROPULSION (3) --- Wheel > --- UTILITY (4) ------ Large Storage Unit > --- WEAPON (2) ------- (None) > --- INVENTORY (15) --- Light Ion Engine Nuclear Core Advanced Weight Redist. System Improved Terrain Scan Processor Particle Cannon Grenade Launcher Peak State ------------ > --- POWER ------------ Light Nuclear Core > --- PROPULSION ------- Aluminum Leg Aluminum Leg Titanium Leg > --- UTILITY ---------- Medium Storage Unit Large Storage Unit Particle Charger Hardened Medium Armor Plating > --- WEAPON ----------- Improved Medium Laser Advanced Beam Rifle > --- INVENTORY -------- Light Ion Engine Light Treads Light Treads Aluminum Leg Wheel Wheel Advanced Weight Redist. System Improved Terrain Scan Processor Particle Gun Heavy Particle Cannon Grenade Launcher [Rating: 24] Favorites ----------- Power Improved Ion Engine Engine Improved Ion Engine Power Core Light Nuclear Core Propulsion Wheel Treads Light Treads Leg Aluminum Leg Wheel Wheel Utility Medium Storage Unit Device Shield Generator Storage Medium Storage Unit Protection Hardened Medium Armor Plating Weapon Medium Laser Energy Gun Medium Laser Energy Cannon Heavy Particle Cannon Build | -11 -10 -9 -9 -8 ------- Run | Yrd Mat Mat Min Mat Slots Evolved 4 | . . 2 . 2 Power 1 | . . . . 1 Propulsion 1 | . . 1 . . Utility 2 | . . 1 . 1 Weapon . | . . . . . Parts Attached 28 | 6 . 5 . 17 Power 5 | 1 . 2 . 2 Engine 3 | 1 . 2 . . Core 2 | . . . . 2 Reactor . | . . . . . Propulsion 11 | 2 . . . 9 Treads 3 | . . . . 3 Leg 4 | . . . . 4 Wheel 4 | 2 . . . 2 Hover . | . . . . . Flight . | . . . . . Utility 6 | 1 . 2 . 3 Device 2 | . . 1 . 1 Storage 3 | 1 . 1 . 1 Processor . | . . . . . Hackware . | . . . . . Protection 1 | . . . . 1 Artifact . | . . . . . Weapon 6 | 2 . 1 . 3 Energy Gun 5 | 2 . 1 . 2 Energy Cannon 1 | . . . . 1 Ballistic Gun . | . . . . . Ballistic Cannon . | . . . . . Launcher . | . . . . . Special Weapon . | . . . . . Impact Weapon . | . . . . . Slashing Weapon . | . . . . . Piercing Weapon . | . . . . . Special Melee Weapon . | . . . . . Unidentified Prototypes 2 | . . 1 . 1 Parts Lost 17 | . . . . 17 Power 3 | . . . . 3 Propulsion 6 | . . . . 6 Utility 4 | . . . . 4 Weapon 4 | . . . . 4 Highest Loss Streak 10 | . . . . 10 To Critical Strikes . | . . . . . Average Slot Usage (%) 82 | . 85 79 88 79 Engine 8 | . 14 11 11 6 Treads 1 | . . . . 3 Leg 7 | . . . . 15 Wheel 13 | . 28 22 22 5 Device 7 | . . 4 11 7 Storage 18 | . 14 19 22 18 Protection 3 | . . . . 6 Energy Gun 18 | . 28 22 22 15 Naked Turns . | . . . . . Heaviest Build 52 | 13 13 29 29 52 Greatest Support 40 | 20 20 20 20 40 Greatest Overweight (x) 15 | . . 1 1 15 Average Overweight (x) . | . . . 1 1 Largest Inventory Capacity 15 | 8 8 10 10 15 Average Capacity 11 | 7 8 9 10 14 Most Carried 14 | 8 8 10 10 14 Average Carried 10 | 4 7 9 10 11 Final Capacity 15 | 8 8 10 10 15 Final Carried 10 | 6 8 10 10 6 Class Distribution -------------------- 100% | Mutant Dominant Class ---------------- Mutant | -10/Materials Mutant | -9/Materials Mutant | -9/Mines Mutant | -8/Materials Resources | -11 -10 -9 -9 -8 ----------- Run | Yrd Mat Mat Min Mat Matter Collected 434 | 210 16 16 68 124 Remotely . | . . . . . Salvage Created 271 | . 16 16 . 239 Parts 15 | . 1 4 . 10 Haulers Intercepted . | . . . . . Recyclers Shooed . | . . . . . Parts Field Recycled . | . . . . . Retrieved Matter . | . . . . . Parts Self-Destructed . | . . . . . Prevented . | . . . . . Kills | -11 -10 -9 -9 -8 ------- Run | Yrd Mat Mat Min Mat Combat Hostiles Destroyed 5 | . . . . 5 Guns 4 | . . . . 4 Classes Destroyed 4 | . 1 . . 3 Operator 2 | . 1 1 . . Grunt 3 | . . . . 3 Sentry 1 | . . . . 1 Hunter 1 | . . . . 1 Best Kill Streak 2 | . 1 1 . 2 Combat Bots Only 2 | . . . . 2 Max Kills in Single Turn 1 | . 1 1 . 1 Gunslinging . | . . . . . Exploded . | . . . . . Melee . | . . . . . Uniques/NPCs Destroyed . | . . . . . Combat | -11 -10 -9 -9 -8 -------- Run | Yrd Mat Mat Min Mat Hostile Shots Fired 223 | . 2 14 . 207 Missed 56 | . . 5 . 51 Damage Taken 2497 | . 27 58 . 2412 Core 588 | . . 34 . 554 Absorbed by Shields 164 | . . 22 . 142 Core Remaining (%) 97 | 100 100 . 91 . Volleys Fired 27 | . 2 2 . 23 Largest 2 | . 2 2 . 2 Hottest 140 | . 90 90 . 140 Shots Fired 53 | . 4 4 . 45 Gun 48 | . 4 4 . 40 Cannon 5 | . . . . 5 Launcher . | . . . . . Special . | . . . . . Kinetic . | . . . . . Thermal 53 | . 4 4 . 45 Explosive . | . . . . . Electromagnetic . | . . . . . Robot Hit Streak 8 | . 2 1 . 8 Robot Miss Streak 2 | . 1 1 . 2 Penetration Max . | . . . . . Secondary Targets . | . . . . . Shots Hit Robots 37 | . 3 2 . 32 Core Hits 18 | . 2 2 . 14 Critical Kills . | . . . . . Critical Parts Destroyed . | . . . . . Critical Strikes 3 | . . . . 3 Burn 3 | . . . . 3 Melee Attacks . | . . . . . Impact . | . . . . . Slashing . | . . . . . Piercing . | . . . . . Sneak Attacks . | . . . . . Combat Hostiles . | . . . . . Follow-up Attacks . | . . . . . Damage Inflicted 643 | . 35 21 . 587 Guns 554 | . 35 21 . 498 Cannons 50 | . . . . 50 Explosions . | . . . . . Melee . | . . . . . Ramming 39 | . . . . 39 Kinetic . | . . . . . Thermal 604 | . 35 21 . 548 Explosive . | . . . . . Electromagnetic . | . . . . . Impact . | . . . . . Slashing . | . . . . . Piercing . | . . . . . Highest Corruption . | . . . . . Average Corruption . | . . . . . Corruption Purged . | . . . . . Corruption Blocked . | . . . . . Overload Shots . | . . . . . Overflow Damage . | . . . . . Projectiles . | . . . . . Explosions . | . . . . . Melee . | . . . . . Knockbacks . | . . . . . Impact . | . . . . . Kinetic . | . . . . . Secondary . | . . . . . Self-Inflicted Damage . | . . . . . Shots . | . . . . . Rammed 1 | . . . . 1 Targets Rammed 14 | . . . . 14 Kicked 13 | . . . . 13 Crushed . | . . . . . Highest Temperature 645 | . 60 42 . 645 Average Temperature 224 | . 33 23 . 245 Received Heat Transfer 1245 | . 15 8 . 1222 Effects 18 | . . . . 18 Shutdowns 3 | . . . . 3 Energy Bleed 5 | . . . . 5 Interference 4 | . . . . 4 Matter Decay 1 | . . . . 1 Short Circuit 1 | . . . . 1 Damage (minor) 1 | . . . . 1 Damage (major) 3 | . . . . 3 Siege Activations . | . . . . . Robots Corrupted . | . . . . . Combat Hostiles . | . . . . . Parts Fried . | . . . . . Impact Corruptions . | . . . . . Robots Melted 1 | . . . . 1 Combat Hostiles 1 | . . . . 1 Parts Melted 2 | . . . . 2 Heat Transferred 1555 | . 99 50 . 1406 Parts Sabotaged . | . . . . . Parts Stolen . | . . . . . Parts Stripped . | . . . . . Power Chain Reactions . | . . . . . Alert | -11 -10 -9 -9 -8 ------- Run | Yrd Mat Mat Min Mat Peak Influence 109 | . 5 36 13 109 Initial 13 | . . 1 13 4 Average 27 | . 4 23 13 43 Maximum Alert Level . | . . . . . Low Security (%) 100 | 100 100 100 100 100 Level 1 . | . . . . . Level 2 . | . . . . . Level 3 . | . . . . . Level 4 . | . . . . . Level 5 . | . . . . . High Security . | . . . . . Max Security . | . . . . . Squads Dispatched 2 | . . . . 2 Investigation . | . . . . . Extermination . | . . . . . Reinforcement 2 | . . . . 2 Assault . | . . . . . Garrison . | . . . . . Intercept . | . . . . . Searches Triggered . | . . . . . Construction Impeded . | . . . . . Haulers Reinforced . | . . . . . Active Scanning Responses . | . . . . . Cargo Convoy Interrupts . | . . . . . Stealth | -11 -10 -9 -9 -8 --------- Run | Yrd Mat Mat Min Mat Distress Signals 4 | . . 1 . 3 Communications Jammed . | . . . . . Distress Signals . | . . . . . Times Spotted 32 | . 4 9 . 19 Peak Tracking Total 9 | . 3 9 . 9 Tactical Retreats 2 | . . . . 2 Traps | -11 -10 -9 -9 -8 ------- Run | Yrd Mat Mat Min Mat Traps Triggered 2 | . . . . 2 Indirectly . | . . . . . Trap Hack Attempts . | . . . . . Triggered . | . . . . . Disarmed . | . . . . . Reprogrammed . | . . . . . Reused . | . . . . . Traps Extracted . | . . . . . Installed . | . . . . . Triggered . | . . . . . Machines | -11 -10 -9 -9 -8 ---------- Run | Yrd Mat Mat Min Mat Machines Disabled . | . . . . . Max in Single Turn . | . . . . . Machines Repaired . | . . . . . Machines Dismantled . | . . . . . Machines Sabotaged . | . . . . . Overloaded Fab Kills . | . . . . . Hacking | -11 -10 -9 -9 -8 --------- Run | Yrd Mat Mat Min Mat Machines Accessed 1 | . 1 . . . Terminals 1 | . 1 . . . Fabricators . | . . . . . Repair Stations . | . . . . . Recycling Units . | . . . . . Scanalyzers . | . . . . . Garrison Access . | . . . . . Total Hacks 1 | . 1 . . . Successful 1 | . 1 . . . Failed . | . . . . . Catastrophic . | . . . . . Database Lockouts . | . . . . . Manual . | . . . . . Terminals 1 | . 1 . . . Fabricators . | . . . . . Repair Stations . | . . . . . Recycling Units . | . . . . . Scanalyzers . | . . . . . Garrison Access . | . . . . . Terminal Hacks 1 | . 1 . . . Alert Level 1 | . 1 . . . Fabricator Hacks . | . . . . . Repair Station Hacks . | . . . . . Recycling Unit Hacks . | . . . . . Scanalyzer . | . . . . . Garrison Access Hacks . | . . . . . Unauthorized Hacks . | . . . . . Terminals . | . . . . . Fabricators . | . . . . . Repair Stations . | . . . . . Recycling Units . | . . . . . Scanalyzers . | . . . . . Garrison Access . | . . . . . Data Cores Recovered 2 | . 1 1 . . Used 1 | . 1 . . . Hacking Detections . | . . . . . Full Trace Events . | . . . . . Feedback Events . | . . . . . Feedback Blocked . | . . . . . Robot Schematics Acquired . | . . . . . Robots Built . | . . . . . Authchips . | . . . . . Time . | . . . . . Total Robot Build Rating . | . . . . . Part Schematics Acquired . | . . . . . Parts Built . | . . . . . Authchips . | . . . . . Time . | . . . . . Total Part Build Rating . | . . . . . Parts Repaired . | . . . . . Time . | . . . . . Parts Recycled . | . . . . . Recycled Matter . | . . . . . Retrieved Matter . | . . . . . Retrieved Components . | . . . . . Parts Scanalyzed . | . . . . . Part Schematics Acquired . | . . . . . Parts Damaged . | . . . . . Bothacking | -11 -10 -9 -9 -8 ------------ Run | Yrd Mat Mat Min Mat Used RIF Installer . | . . . . . Robots Hacked . | . . . . . Non-combat . | . . . . . Combat . | . . . . . Robot Hacks Applied . | . . . . . Relay Couplers Released . | . . . . . Fabnet Peak Effective % . | . . . . . Robots Rewired . | . . . . . Allies Hacked . | . . . . . Hacks Repelled . | . . . . . Allies | -11 -10 -9 -9 -8 -------- Run | Yrd Mat Mat Min Mat Total Allies . | . . . . . Largest Group . | . . . . . Highest-Rated Group . | . . . . . Highest-Rated Ally . | . . . . . Total Orders . | . . . . . Ally Attacks . | . . . . . Total Damage . | . . . . . Kills . | . . . . . Allies Corrupted . | . . . . . Allies Melted . | . . . . . Intel | -11 -10 -9 -9 -8 ------- Run | Yrd Mat Mat Min Mat Robot Analysis Total . | . . . . . Derelict Logs Recovered 1 | . . . 1 . Drone Launches . | . . . . . Drone Recoveries . | . . . . . Exploration | -11 -10 -9 -9 -8 ------------- Run | Yrd Mat Mat Min Mat Turns Passed 1134 | 69 88 172 258 547 Spaces Moved 851 | 65 100 163 271 252 Core 4 | 3 . . . 1 Treads 17 | . . . . 17 Legs 110 | . . . . 110 Wheels 720 | 62 100 163 271 124 Hover . | . . . . . Flight . | . . . . . Fastest Speed 50 | 50 80 80 95 95 Average Speed 108 | 78 80 91 95 152 Slowest Speed 800 | 80 80 95 95 800 Overloaded Moves . | . . . . . Propulsion Burnouts . | . . . . . Robots Hopped . | . . . . . Cave-ins Triggered . | . . . . . Exploration Rate (%) 28 | 3 27 20 57 35 Regions Visited 4 Branch Regions 1 Pre-discovered Areas 2 | . . . 2 . Known Exits Taken . | . . . . . Unknown Exits Taken 4 | 1 1 1 1 . Scrap Searched . | . . . . . Spaces Dug . | . . . . . Terrain Destroyed 3 | . . . . 3 Melee . | . . . . . Projectile 3 | . . . . 3 AOE . | . . . . . Terrain Rammed . | . . . . . Walls Destroyed . | . . . . . Machines Disabled . | . . . . . Actions | -11 -10 -9 -9 -8 --------- Run | Yrd Mat Mat Min Mat Total 997 | 82 103 181 271 360 Wait 45 | . . 6 1 38 Move 847 | 64 99 162 270 252 Hop . | . . . . . Pick Up 29 | 12 2 3 . 12 Fast Attach 2 | . . 2 . . Attach 21 | 6 . 1 . 14 Detach 2 | . . 1 . 1 Swap 5 | . . 2 . 3 Drop 5 | . . 2 . 3 Fire 27 | . 2 2 . 23 Melee . | . . . . . Ram . | . . . . . Kick 13 | . . . . 13 Crush 1 | . . . . 1 Escape Stasis . | . . . . . Rewire . | . . . . . Trap . | . . . . . Miscellaneous . | . . . . . Route ------- -11/Scrapyard -10/Materials -9/Materials -9/Mines (discovered 2 exits: *Mat x2) -8/Materials History --------- Turn | Location | Event 23 | -11/Scrapyard | Discovered new exit (range 14) 70 | -11/Scrapyard | Entered Materials 146 | -10/Materials | Discovered new exit (range 16) 158 | -10/Materials | Entered another Materials area 158 | -9/Materials | Evolved 2 slots: Propulsion x1, Utility x1 301 | -9/Materials | Build established: Mutant 321 | -9/Materials | Discovered new exit (range 10) 330 | -9/Materials | Entered Mines 460 | -9/Mines | Learned location of Zion (-6) 495 | -9/Mines | Learned location of Storage (-7) 561 | -9/Mines | Discovered new exit (range 13) 582 | -9/Mines | Discovered new exit (range 5) 588 | -9/Mines | Entered Materials 588 | -8/Materials | Evolved 2 slots: Power x1, Utility x1 1095 | -8/Materials | Lost 10 parts (1p4n2u3w) 1104 | -8/Materials | Core integrity fell below 50% 1123 | -8/Materials | Core integrity fell below 20% 1135 | -8/Materials | Destroyed by Y-45 Defender with Beam Rifle Last Messages --------------- 01113_ Lgt. Treads destroyed. 01113_ Critical hit (Burn: +37). 01114_ Lgt. Treads destroyed. 01117_ U-05 Engineer builds a Wall. 01118_ B-36 Bruiser heat short circuits Lgt. Treads. 01120_ Particle Gun destroyed. 01123_ Overheating: Hvy. Particle Cannon damaged (-14). 01126_ Nuclear Core destroyed. 01127_ Med. Storage Unit destroyed. 01127_ Triggered Blade Trap. 01127_ Massive razor-sharp blades shoot up from within the floor. 01127_ Wheel severed. 01128_ Triggered Blade Trap. 01128_ Massive razor-sharp blades shoot up from within the floor. 01128_ Hvy. Particle Cannon severed. 01133_ U-05 Engineer lays Concrete. Map ----- +----------------------------------------------------+ | ?????????????????????????????????????????????????? | | ?????????????????????????????????????????????????? | | ?????????????????????????????????????????????????? | | ?????????????????????????????????????????????????? | | ?????????????????????????????????????????????????? | | ?????????????????????????????????????????????????? | | ?????????????????????????????????????????????????? | | ?????????????????????????????????????????????????? | | ?????????????????????????????????????????????????? | | ?????????????????????????????????????????????????? | | ?????????????????????????????????????????????????? | | ?????????????????????????????????????????????????? | | ?????????????????????????????????????????????????? | | ?????????????????????????????????????????????????? | | ?????????????????????????????????????????????????? | | ???????#?????????????????????????????????????????? | | ???????#"????????????????????????????????????????? | | ???????#%#########???????????????????????????????? | | ???????#" T #???????????????????????????????? | | ???????# +???????????????????????????????? | | ??????## #???????????????????????????????? | | ??????## ^^ #???????????????????????????????? | | ??????## ^ #???????????????????????????????? | | ???????# ]** #???????????????????????????????? | | ??????## ############## #????????????? | | ??????# [ u uu @ #????????????? | | ??????# g Y #????????????? | | ??????# g ^ k #????????????? | | ???? + ##+######## ######## #????????????? | | ?? # # % #????# #?????????####????????????? | | ? ??# # ! #????# #?????????????????????????? | | ?#????# ?# #????# #?????????????????????????? | | ????? ?# % #????# #?????????????????????????? | | ???? ?# #????# #?????????????????????????? | | ??? """ ??# / #????# #?????????????????????????? | | ??"""""" ??# #????? ??????????????????????????? | | ??????" ???# #????? ??????????????????????????? | | ??????? ???#! #????? ??????????????????????????? | | ??????????####+##????? ??????????????????????????? | | ??????????#%% #????? ??????????????????????????? | | ??????????#% "" #????? ??????????????????????????? | | ??????????# "T" #????????????????????????????????? | | ??????????#% #?????+####??????????????????????? | | ?????? ???#%""" #???? #??????????????????????? | | ?????"" ?#%""" #???? #??????????????????????? | | ????"""" ?# """ #??? / #??????????????????????? | | """"" " #%% #?? ?#??????????????????????? | | ###/#### #??????????????????????? | | # #??????????????????????? | | / ! #??????????????????????? | +----------------------------------------------------+ Best States ------------- Heat Dissipation 31 Energy Generation 14 Energy Capacity 265 Matter Stores 300 Matter Capacity 300 Sight Range 16 Terrain Scan Density 10 Armor Coverage 225 Evasion (%) 44 Recoil Reduction 2 Particle Charging 15 Item Schematics ----------------- None Robot Schematics ------------------ None Fabricated ------------ Nothing Alien Tech Used ----------------- None Achievements -------------- Dynamic Key Challenges ------------ None Game ------ Seed GatlingSpectralWeb Manual? 0 Play Time 00:16:10 Cumulative 32.2 hours Start 2024.04.01 @ 20:03:16 End 2024.04.01 @ 20:18:56 Sessions 1 Manual Loads 0 Difficulty Rogue Special Mode None Game No. 47 Rogue 47 Adventurer 0 Explorer 0 Win Type - Total 0 Types 0/0/0/0/0/0/0/0/0 Lore% 16 Gallery% 30 Achievement% 20 Wizard Run 0 Options --------- Layout 1 ASCII 0 Keyboard 0 Movement Mouse Keybinds 0 Fullscreen 1 Font 16/SmallcapsGlow Map View 50x40 Zoom Use 0% Tactical HUD 1 Map Filters NONE Filters NONE Steam SD RUN: d6f63df4-24b1-423f-a58f-50b2306cfe90